bitfinex/quotes_ETHUSD_20251118
["timestamp","ask_amount","ask_price","bid_price","bid_amount"]
[1763451409122,0.287,3030.2,3030.1,1.50483899]
[1763451409320,0.002,3030.2,3030.1,1.97483899]
[1763451409515,0.287,3030.2,3030.1,2.28757281]
[1763451410162,1.75170273,3031.8,3030.1,2.28757281]
[1763451410163,0.84471009,3031.8,3030.2,0.405504]
[1763451410372,8.44710094,3032.6,3030.2,0.405504]
[1763451410373,0.285,3031.7,3030.3,0.86433899]
[1763451410581,1.79405429,3033.6,3030.3,0.86433899]
[1763451410582,0.285,3031.6,3030.3,0.86433899]
[1763451410758,0.285,3031.5,3030.3,0.47]
[1763451410963,0.285,3031.4,3030.1,1.05423899]
[1763451411161,0.285,3031.4,3029.8,0.6599]
[1763451411162,3.29099264,3031.3,3029.8,0.6599]
[1763451411482,3.29099264,3031.3,3029.8,0.1899]
[1763451411642,2.09899264,3031.3,3029.8,0.1899]
[1763451411847,0.90699264,3031.1,3029.8,0.1899]
[1763451412077,0.35759926,3031.0,3029.8,0.1899]
[1763451412263,0.90699264,3030.9,3029.8,0.1899]
[1763451412456,0.90699264,3031.3,3029.8,0.1899]
[1763451412655,1.192,3030.8,3029.8,0.6599]
[1763451413475,2.667,3030.7,3029.8,0.6599]
[1763451414455,0.90699264,3031.3,3029.8,0.6599]
[1763451414746,0.90699264,3031.1,3029.8,0.6599]
[1763451415055,0.90699264,3030.9,3029.9,0.47]
[1763451415249,0.90699264,3030.9,3029.8,0.1899]
[1763451416054,0.90699264,3030.9,3029.8,0.6599]
[1763451416257,0.35739926,3030.8,3029.8,0.6599]
[1763451416668,0.35739926,3030.8,3029.9,0.47]
[1763451416878,1.476,3030.7,3029.9,0.47]
[1763451419163,1.476,3030.6,3029.9,0.47]
[1763451419788,1.476,3030.6,3029.8,0.1899]
[1763451419990,0.90699264,3031.4,3029.9,0.47]
[1763451420227,1.19603619,3032.2,3030.0,0.0330033]
[1763451420228,0.9346939,3031.3,3030.0,0.0330033]
[1763451420395,0.89105034,3032.7,3030.4,8.43994633]
[1763451420565,2.3367631,3033.5,3030.8,8.43994633]
[1763451420566,1.191,3031.2,3030.8,8.43994633]
[1763451420766,1.191,3031.2,3031.1,0.405504]
[1763451420989,1.191,3033.0,3031.2,1.31249664]
[1763451421300,0.89105034,3034.4,3031.6,0.86117823]
[1763451421301,1.476,3032.9,3031.6,0.86117823]
[1763451421460,1.476,3032.9,3031.6,1.06211982]
[1763451421461,0.285,3032.8,3031.6,1.06211982]
[1763451421668,0.285,3032.8,3031.7,1.36416302]
[1763451422001,8.43994633,3034.1,3032.7,0.6405]
[1763451422202,2.667,3034.0,3032.7,0.6405]
[1763451422364,0.90699264,3033.5,3032.2,0.1899]
[1763451422697,8.43994633,3033.1,3031.6,0.1899]
[1763451422898,0.90699264,3032.5,3031.1,0.1899]
[1763451423111,1.2196939,3032.4,3031.1,0.6599]
[1763451423311,1.2196939,3032.4,3030.6,0.47]
[1763451423465,0.405504,3032.3,3030.6,0.47]
[1763451424762,0.405504,3032.1,3030.5,0.1899]
[1763451425015,0.405504,3031.7,3030.2,0.1899]
[1763451425213,0.405504,3031.5,3029.8,0.1899]
[1763451425415,0.405504,3031.3,3029.8,0.1899]
[1763451425583,0.90699264,3031.0,3029.6,0.1899]
[1763451425781,1.2196939,3030.9,3029.2,0.1899]
[1763451426120,1.2196939,3030.9,3029.2,0.658]
[1763451426286,1.2196939,3030.9,3030.0,0.001]
[1763451426782,0.405504,3030.8,3030.0,0.001]
[1763451426982,0.90699264,3030.1,3028.5,0.001]
[1763451427219,1.2196939,3030.9,3028.5,0.001]
[1763451427220,0.90699264,3029.7,3028.5,0.001]
[1763451427418,0.690504,3029.6,3028.5,0.001]
[1763451427932,0.90699264,3029.7,3028.5,0.001]
[1763451428086,0.40422406,3030.0,3028.5,0.4691]
[1763451428291,0.285,3029.9,3028.5,0.4691]
[1763451429307,0.285,3029.9,3028.5,0.001]
[1763451429506,0.87249463,3029.9,3028.6,0.4681]
[1763451429722,8.43994633,3031.1,3028.7,0.03301746]
[1763451429929,0.285,3031.0,3028.7,0.03301746]
[1763451430110,0.285,3031.0,3028.8,0.4681]
[1763451430287,0.405504,3030.9,3028.9,0.03301528]
[1763451430488,8.43994633,3031.1,3029.0,0.4681]
[1763451430719,0.84399463,3031.0,3029.0,0.4681]
[1763451430926,0.84399463,3031.0,3029.1,0.1906]
[1763451431085,2.382,3030.9,3029.1,0.1906]
[1763451431289,2.382,3030.9,3029.2,0.4681]
[1763451431712,0.285,3030.8,3029.2,0.4681]
[1763451431993,0.2667,3030.7,3029.2,0.4681]
[1763451433705,0.2667,3030.7,3029.2,0.19286]
[1763451433706,0.11,3030.6,3029.2,0.19286]
[1763451433936,0.11,3030.6,3029.1,0.1906]
[1763451435733,0.11,3030.6,3029.2,0.4681]
[1763451437523,0.90699264,3030.4,3029.2,0.50111201]
[1763451438369,2.667,3030.5,3030.3,0.6518]
[1763451438370,2.382,3030.5,3030.3,0.6518]
[1763451438511,0.67034889,3033.7,3030.4,0.9293]
[1763451438512,0.055,3031.9,3030.4,0.9293]
[1763451438710,1.476,3031.8,3030.5,0.03299785]
[1763451438906,0.055,3032.7,3031.8,0.1906]
[1763451439160,1.476,3032.6,3031.8,0.1906]
[1763451439370,1.476,3032.6,3031.5,0.18]
[1763451439664,1.531,3032.6,3031.5,0.18]
[1763451439954,1.476,3032.6,3031.6,0.4768]
[1763451440305,1.476,3032.6,3031.5,0.18]
[1763451440509,1.476,3032.6,3031.5,0.6568]
[1763451440752,1.476,3032.6,3031.6,0.50978588]
[1763451440962,1.476,3032.6,3031.6,0.4768]
[1763451441110,1.476,3032.6,3031.5,0.18]
[1763451441314,0.2667,3032.5,3031.5,0.18]
[1763451442073,0.6688962,3034.9,3031.6,0.50978588]
[1763451442356,1.191,3034.5,3033.4,8.43994633]
[1763451442552,0.285,3034.4,3033.5,0.4768]
[1763451442921,0.285,3034.4,3033.2,0.18]
[1763451443358,0.285,3034.4,3033.3,0.4768]
[1763451443562,0.005,3034.3,3032.7,0.18]
[1763451443708,0.405504,3034.3,3032.7,0.18]
[1763451443910,0.055,3035.0,3032.8,0.50977283]
[1763451443911,2.668,3034.2,3032.8,0.50977283]
[1763451444113,1.17379264,3034.1,3032.8,0.4768]
[1763451444422,0.405504,3034.0,3032.7,0.18]
[1763451444745,0.405504,3034.0,3032.6,0.17]
[1763451444948,0.90699264,3033.9,3032.6,0.17]
[1763451445249,0.2668,3034.1,3032.6,0.17]
[1763451445250,0.9752443,3033.8,3032.6,0.17]
[1763451445451,0.90699264,3034.1,3032.6,0.17]
[1763451445452,0.285,3033.7,3032.6,0.17]
[1763451445742,0.285,3033.7,3032.6,0.6468]
[1763451446848,0.285,3033.7,3032.6,0.17]
[1763451447598,0.285,3033.7,3032.6,0.6468]
[1763451447940,2.387,3034.2,3032.6,0.17]
[1763451448185,0.32939926,3034.0,3032.6,0.6468]
[1763451448477,0.32939926,3034.0,3032.0,0.18]
[1763451448664,0.32939926,3034.0,3032.6,0.4768]
[1763451450439,0.32939926,3034.0,3032.0,0.18]
[1763451450646,8.43994633,3033.3,3031.5,0.18]
[1763451450845,0.32939926,3034.0,3030.2,1.73070925]
[1763451450846,0.90699264,3031.9,3030.2,0.4768]
[1763451451042,0.90699264,3031.4,3030.2,0.4768]
[1763451451355,0.005,3031.3,3030.0,0.18]
[1763451451555,0.286,3031.2,3030.1,0.4768]
[1763451451759,0.286,3031.1,3030.1,0.4768]
[1763451452283,0.90699264,3031.6,3030.1,0.4768]
[1763451452469,1.477,3031.5,3030.2,0.03300112]
[1763451452780,1.477,3031.5,3030.4,0.405504]
[1763451452945,1.477,3031.5,3030.5,0.50979785]
[1763451453145,1.477,3031.5,3031.4,0.18]
[1763451453577,1.477,3031.5,3031.4,0.6568]
[1763451453793,1.477,3031.5,3030.1,8.78504386]
[1763451453794,1.477,3031.5,3031.1,0.18]
[1763451453989,1.477,3031.5,3029.6,0.85558339]
[1763451453990,0.2718,3031.4,3029.6,0.85558339]
[1763451454166,0.2718,3031.4,3029.5,0.03300874]
[1763451454368,0.2718,3031.4,3030.0,0.6568]
[1763451454769,0.90699264,3031.2,3030.0,0.6568]
[1763451455191,0.90699264,3032.0,3030.1,0.4768]
[1763451455393,0.90699264,3032.0,3030.0,0.18]
[1763451455394,0.405504,3031.7,3030.0,0.18]
[1763451455566,0.005,3031.6,3030.0,0.18]
[1763451456318,0.286,3031.5,3030.1,0.4769]
[1763451457586,0.005,3031.4,3030.1,0.4769]
[1763451457787,0.005,3031.4,3030.0,0.18]
[1763451458271,0.410504,3031.4,3029.3,0.4769]
[1763451458472,0.410504,3031.4,3029.1,0.001]
[1763451458473,0.405504,3031.0,3029.1,0.001]
[1763451458704,0.405504,3030.4,3029.1,0.001]
[1763451458881,0.405504,3030.2,3029.1,0.001]
[1763451459074,2.668,3030.1,3029.1,0.6744]
[1763451459272,0.286,3030.0,3029.1,0.6744]
[1763451460081,0.005,3030.5,3029.1,0.6744]
[1763451460269,2.668,3030.4,3029.1,0.6744]
[1763451462187,0.005,3030.3,3029.1,0.1975]
[1763451462483,0.2718,3030.3,3029.1,0.1975]
[1763451462718,0.2718,3030.3,3029.1,0.6744]
[1763451462719,0.90699264,3030.1,3029.1,0.6744]
[1763451463883,1.31249664,3030.9,3029.2,0.4769]
[1763451464147,1.17675607,3032.5,3029.2,0.4769]
[1763451464148,1.191,3030.0,3029.2,0.4769]
[1763451464347,1.476,3029.9,3029.2,0.4769]
[1763451464553,1.191,3029.9,3029.3,0.03301092]
[1763451464720,0.005,3031.6,3029.4,0.882404]
[1763451464721,1.191,3031.0,3029.4,0.882404]
[1763451465045,2.85261656,3033.4,3029.4,0.882404]
[1763451465046,1.191,3030.9,3029.6,0.405504]
[1763451465206,1.191,3030.9,3029.5,0.4769]
[1763451465603,0.005,3032.2,3030.8,0.1965]
[1763451465843,2.382,3032.1,3030.8,0.1965]
[1763451466021,0.5247,3032.0,3030.8,0.1965]
[1763451466344,1.43669264,3032.0,3030.8,0.1965]
[1763451466545,0.5297,3032.0,3030.8,0.1965]
[1763451466754,1.6377426,3033.7,3030.8,0.1965]
[1763451466755,0.002,3034.3,3030.9,0.4769]
[1763451466913,0.4769,3033.6,3031.0,9.52330059]
[1763451467244,0.286,3033.5,3031.4,0.405504]
[1763451467419,2.387,3033.9,3031.6,0.405504]
[1763451467420,0.005,3033.9,3031.6,0.405504]
[1763451467752,1.191,3033.4,3031.8,0.405504]
[1763451467961,0.002,3034.3,3032.0,0.405504]
[1763451468270,2.668,3034.2,3032.1,0.88856383]
[1763451468549,2.673,3034.2,3032.2,1.06083644]
[1763451468707,2.673,3034.2,3032.3,0.50987826]
[1763451468909,2.673,3034.2,3032.3,0.4769]
[1763451469156,0.005,3034.1,3032.3,0.4769]
[1763451469451,0.91199264,3034.1,3032.3,0.4769]
[1763451469805,0.005,3034.0,3032.3,0.4769]
[1763451472049,0.002,3034.3,3032.3,0.4769]
[1763451472247,2.382,3034.2,3032.5,0.405504]
[1763451472419,0.286,3034.1,3032.6,0.4769]
[1763451472746,0.558,3034.1,3032.6,0.4769]
[1763451472958,0.267,3034.1,3032.6,0.4769]
[1763451473254,0.90699264,3033.9,3032.6,0.4769]
[1763451473420,0.90699264,3033.9,3032.7,0.03297391]
[1763451473752,1.477,3033.8,3032.7,0.03297391]
[1763451473907,0.286,3033.7,3032.8,0.4769]
[1763451474107,0.002,3034.3,3032.9,0.03297174]
[1763451474431,1.477,3034.2,3033.6,0.1965]
[1763451474655,1.477,3034.2,3033.6,0.6734]
[1763451475347,0.002,3034.3,3034.1,0.1965]
[1763451475857,1.476,3034.2,3034.1,0.1965]
[1763451476225,1.476,3034.2,3034.1,0.6734]
[1763451478644,1.476,3034.2,3033.6,0.6734]
[1763451478852,1.476,3034.2,3033.1,0.1965]
[1763451479161,1.475,3034.1,3033.1,0.6734]
[1763451479624,1.475,3034.1,3033.2,0.4769]
[1763451479834,1.7417,3034.1,3033.1,0.1965]
[1763451480026,2.64869264,3034.1,3033.1,0.1965]
[1763451480345,2.64869264,3034.1,3032.6,0.6734]
[1763451480516,2.65369264,3034.1,3032.6,0.1965]
[1763451480717,2.65369264,3034.1,3032.7,0.4769]
[1763451480718,1.19,3034.0,3032.7,0.4769]
[1763451480918,0.285,3033.9,3032.7,0.50987391]
[1763451481117,0.285,3033.9,3032.7,0.4769]
[1763451481686,0.285,3033.9,3032.7,0.50987391]
[1763451481964,1.19,3034.1,3032.7,0.50987391]
[1763451481965,0.002,3034.3,3033.8,0.1965]
[1763451482275,1.475,3034.2,3033.8,0.1965]
[1763451482437,1.475,3034.2,3033.9,0.4769]
[1763451482638,0.002,3034.3,3034.0,0.03295978]
[1763451482827,0.03294,3035.0,3034.1,0.4769]
[1763451482828,1.19,3034.9,3034.1,0.4769]
[1763451483029,1.19,3034.2,3034.1,0.882404]
[1763451483258,0.09083496,3036.3,3034.2,0.405504]
[1763451483561,0.13083496,3036.3,3034.2,0.882404]
[1763451484040,0.04,3036.2,3034.3,0.4769]
[1763451484245,9.52330059,3036.0,3033.9,0.4769]
[1763451484431,1.8593227,3035.9,3033.9,0.4769]
[1763451484627,0.285,3035.8,3034.0,0.405504]
[1763451485067,0.285,3035.8,3034.1,0.4769]
[1763451485268,0.325,3035.8,3034.1,0.4769]
[1763451485473,0.04,3035.7,3034.1,0.4769]
[1763451485633,0.405504,3035.6,3033.8,0.1965]
[1763451486072,1.31249664,3035.4,3033.1,0.4608]
[1763451486429,0.04,3035.3,3033.1,0.4608]
[1763451486636,0.285,3035.2,3033.1,0.4608]
[1763451487142,1.31249664,3035.4,3033.2,0.03296848]
[1763451487143,0.04,3035.1,3033.2,0.03296848]
[1763451487350,0.285,3035.0,3033.1,0.4608]
[1763451487564,0.285,3034.9,3033.1,0.4608]
[1763451487869,0.04,3035.8,3033.2,1.34546512]
[1763451488033,0.285,3035.7,3033.4,0.405504]
[1763451488229,0.285,3035.7,3033.2,0.4608]
[1763451488454,0.285,3035.7,3033.0,0.1965]
[1763451488455,0.04,3035.6,3033.1,0.4608]
[1763451489974,0.405504,3035.5,3033.1,0.4608]
[1763451490153,0.04,3035.6,3033.1,0.4608]
[1763451490154,0.90699264,3035.3,3033.1,0.4608]
[1763451490553,0.04,3035.2,3033.1,0.4608]
[1763451490947,0.04,3035.2,3033.1,0.49376956]
[1763451491150,0.90699264,3035.0,3033.1,0.4608]
[1763451491556,0.04,3034.9,3033.1,0.4608]
[1763451494593,0.04,3034.9,3033.0,0.1965]
[1763451494594,9.52330059,3034.8,3033.0,0.1965]
[1763451494883,0.04,3034.9,3032.6,0.1965]
[1763451494884,0.90699264,3034.3,3032.6,0.1965]
[1763451495082,0.285,3034.2,3032.6,0.1965]
[1763451495294,0.04,3034.2,3032.6,0.6573]
[1763451495450,0.90699264,3034.0,3032.6,0.6573]
[1763451495653,0.90699264,3034.0,3032.7,0.4608]
[1763451495855,8.8171216,3034.9,3032.7,0.4608]
[1763451495856,1.475,3033.9,3032.7,0.4608]
[1763451496163,2.665,3033.9,3032.7,0.4608]
[1763451496376,2.665,3033.9,3032.7,1.31638339]
[1763451496553,2.665,3033.9,3032.7,0.4608]
[1763451496755,2.665,3033.9,3032.8,0.4608]
[1763451497196,0.04,3033.8,3032.6,1.05208339]
[1763451497357,0.04,3033.8,3032.6,0.6573]
[1763451497686,2.665,3033.7,3032.6,0.1965]
[1763451497886,2.665,3033.7,3032.7,0.4608]
[1763451498307,2.665,3033.7,3032.8,0.03297283]
[1763451498467,0.90699264,3034.8,3032.7,0.4608]
[1763451498667,0.94699264,3034.6,3032.7,0.4608]
[1763451499084,0.04,3034.5,3032.7,0.4608]
[1763451501793,0.04,3034.5,3032.7,0.4641]
[1763451502992,0.04,3034.5,3032.6,1.05308339]
[1763451502993,0.90699264,3034.3,3032.6,0.1975]
[1763451503176,0.285,3034.2,3032.6,0.1975]
[1763451503381,0.325,3034.2,3032.6,0.1975]
[1763451503688,0.04,3034.1,3032.6,0.6616]
[1763451503865,0.04,3034.1,3032.6,1.51718339]
[1763451504081,8.8171216,3034.9,3032.6,1.51718339]
[1763451504082,2.665,3034.0,3032.7,0.4641]
[1763451504629,0.04,3035.1,3033.9,0.1849]
[1763451504777,1.19,3034.4,3033.9,0.1849]
[1763451505113,0.285,3034.3,3033.9,0.1849]
[1763451505301,0.285,3034.3,3033.9,0.649]
[1763451505499,0.285,3034.3,3034.2,0.4555]
[1763451505701,1.19,3034.4,3034.2,0.9196]
[1763451505888,1.19,3034.4,3034.3,0.9196]
[1763451506085,1.19,3034.4,3034.3,1.09711834]
[1763451506612,0.002,3035.8,3034.3,1.53015826]
[1763451506907,1.475,3035.7,3035.6,0.1849]
[1763451507114,1.475,3035.7,3034.8,0.86011319]
[1763451507484,1.475,3035.7,3034.9,0.4641]
[1763451508313,1.475,3035.7,3034.3,1.32433593]
[1763451508314,1.475,3035.7,3034.4,1.32421319]
[1763451508806,0.002,3035.8,3034.5,1.32421319]
[1763451509019,1.475,3035.6,3034.6,0.4641]
[1763451509381,1.475,3035.6,3035.5,0.1849]
[1763451509923,1.475,3035.6,3035.2,0.1849]
[1763451510088,1.475,3035.6,3034.7,0.1849]
[1763451510290,1.475,3035.6,3033.9,0.1849]
[1763451510291,1.475,3035.6,3034.4,0.86011319]
[1763451510482,1.475,3035.6,3034.2,0.86011319]
[1763451510681,1.475,3035.5,3034.5,0.4641]
[1763451511001,0.042,3035.8,3034.5,0.4641]
[1763451511002,0.002,3035.8,3034.5,0.4641]
[1763451511204,2.665,3035.7,3034.2,0.86011319]
[1763451511377,1.17769264,3035.6,3034.1,0.4641]
[1763451511579,1.21769264,3035.6,3034.1,0.4641]
[1763451511779,0.04,3035.5,3034.1,0.4641]
[1763451511979,2.665,3035.4,3034.1,0.4641]
[1763451512202,2.9355,3035.3,3034.1,0.4641]
[1763451512406,0.04,3035.2,3033.9,0.1849]
[1763451512614,0.94699264,3035.2,3033.4,0.86011319]
[1763451512794,0.29755,3035.1,3033.2,0.4641]
[1763451512994,0.33755,3035.1,3033.3,0.4641]
[1763451513223,0.04,3035.0,3033.3,0.4641]
[1763451513815,0.04,3035.0,3033.0,1.04501319]
[1763451514014,0.04,3035.0,3033.0,0.649]
[1763451514205,0.04,3035.0,3033.1,0.4641]
[1763451514602,1.475,3034.9,3033.1,0.4641]
[1763451514817,2.665,3034.8,3033.2,0.03296848]
[1763451515016,0.2665,3034.7,3033.1,0.4641]
[1763451515233,0.2665,3034.7,3033.1,1.32421319]
[1763451515406,2.665,3034.6,3033.1,1.32421319]
[1763451515724,2.665,3034.6,3033.4,0.86011319]
[1763451515935,0.09083496,3036.3,3033.5,0.03296522]
[1763451516220,1.19,3034.7,3033.5,1.32071319]
[1763451516382,0.285,3034.6,3033.6,0.86011319]
[1763451516589,0.285,3034.6,3033.6,1.32071319]
[1763451516784,0.285,3034.6,3033.7,0.4606]
[1763451516985,0.285,3034.6,3033.6,0.86011319]
[1763451517185,0.285,3034.6,3033.7,0.4606]
[1763451518113,0.002,3035.0,3033.7,0.4606]
[1763451518317,2.665,3034.9,3033.7,1.32071319]
[1763451518686,1.475,3034.8,3033.8,0.4606]
[1763451519120,0.002,3035.0,3033.8,0.4606]
[1763451519318,0.002,3035.0,3034.9,0.1949]
[1763451519518,0.002,3035.0,3033.9,0.03296087]
[1763451519519,0.002,3035.0,3034.6,0.1949]
[1763451519732,1.475,3034.9,3034.6,0.1949]
[1763451520225,1.475,3034.9,3034.6,0.6555]
[1763451520428,1.475,3034.9,3034.1,1.05501319]
[1763451520598,1.475,3034.9,3034.1,1.51561319]
[1763451520795,1.475,3034.9,3034.1,1.05501319]
[1763451521001,1.475,3034.9,3034.2,0.4606]
[1763451521327,1.475,3034.9,3034.1,1.05501319]
[1763451521514,0.002,3035.0,3034.2,0.4606]
[1763451521716,1.475,3034.9,3034.2,0.4606]
[1763451522407,0.002,3035.0,3034.2,0.4606]
[1763451522597,1.475,3034.9,3034.2,0.4606]
[1763451523006,1.475,3034.8,3034.2,1.32071319]
[1763451523397,1.475,3034.8,3034.7,0.4983]
[1763451523906,1.475,3034.8,3034.7,0.9589]
[1763451524120,1.19,3034.8,3034.7,0.9589]
[1763451524326,1.475,3034.8,3034.7,2.00420994]
[1763451524732,1.19,3034.8,3034.7,9.49703287]
[1763451524940,1.19,3034.8,3034.7,9.75078509]
[1763451525123,1.19,3034.8,3034.7,10.15628909]
[1763451525331,1.19,3034.8,3034.7,0.64579675]
[1763451525512,1.19,3034.8,3034.7,1.79261434]
[1763451525711,1.19,3034.8,3034.7,1.60741759]
[1763451525922,1.475,3034.8,3034.7,1.60540162]
[1763451526125,1.475,3034.8,3034.7,0.4606]
[1763451526298,1.475,3034.8,3034.7,1.31933871]
[1763451526499,1.475,3034.8,3034.7,1.56575274]
[1763451527438,1.475,3034.8,3034.7,1.20531403]
[1763451527637,0.04,3036.0,3034.7,1.20531403]
[1763451527638,0.08624518,3036.3,3034.7,1.20531403]
[1763451527845,1.475,3036.2,3034.8,1.31900134]
[1763451528338,1.475,3036.2,3034.9,0.4606]
[1763451528504,1.475,3036.1,3034.9,1.35195135]
[1763451529025,1.475,3036.1,3035.0,1.31900134]
[1763451529339,1.475,3036.1,3035.0,9.73777209]
[1763451529640,1.475,3036.1,3036.0,0.1949]
[1763451530410,1.475,3036.1,3035.7,0.1949]
[1763451530608,1.475,3036.1,3035.3,0.03294567]
[1763451530839,0.08624518,3036.3,3035.3,0.4606]
[1763451530840,1.189,3036.0,3035.3,0.4606]
[1763451531135,0.285,3035.9,3035.3,0.4606]
[1763451531513,1.474,3035.8,3035.3,0.4606]
[1763451532043,1.474,3035.8,3035.7,0.4983]
[1763451532438,1.474,3035.8,3035.7,0.9589]
[1763451532742,1.474,3035.8,3035.2,1.05330134]
[1763451532907,1.474,3035.8,3035.2,1.51390134]
[1763451533107,1.474,3035.8,3035.2,1.77977164]
[1763451533313,1.474,3035.7,3035.2,0.4607703]
[1763451533543,0.285,3035.6,3035.2,0.4607703]
[1763451533843,0.285,3035.6,3035.0,0.85840134]
[1763451534059,0.285,3035.6,3034.9,1.05330134]
[1763451534749,0.285,3035.6,3034.9,0.85840134]
[1763451534956,0.285,3035.6,3034.6,1.05330134]
[1763451535331,0.285,3035.6,3034.6,1.73371164]
[1763451536729,0.285,3035.6,3034.9,0.001]
[1763451537136,0.04,3035.0,3034.9,0.001]
[1763451537433,0.285,3035.0,3034.9,0.001]
[1763451538565,0.285,3035.0,3034.9,0.9599]
[1763451538934,0.285,3035.0,3034.9,1.14173013]
[1763451539972,0.285,3035.0,3034.9,0.18283013]
[1763451540131,1.474,3035.0,3034.9,0.9599]
[1763451540455,1.474,3035.0,3034.9,1.35770134]
[1763451540642,1.474,3035.0,3034.9,0.4993]
[1763451540834,1.474,3035.0,3034.9,1.81830134]
[1763451541237,1.474,3035.0,3034.9,0.4993]
[1763451541457,1.474,3035.0,3034.9,0.001]
[1763451541874,0.08824518,3036.3,3034.9,1.81830134]
[1763451542189,1.474,3036.2,3036.0,0.1949]
[1763451542579,1.474,3036.2,3035.5,0.86016377]
[1763451542580,0.04,3036.1,3035.5,0.86016377]
[1763451542880,1.474,3036.2,3035.4,0.86016377]
[1763451543068,1.474,3036.2,3035.6,0.86016377]
[1763451543268,1.474,3036.2,3035.5,0.86016377]
[1763451543485,1.474,3036.2,3035.5,1.08015031]
[1763451544218,8.41877075,3037.5,3035.5,1.08015031]
[1763451544219,0.04,3038.3,3036.1,8.61367075]
[1763451544359,1.474,3038.2,3037.3,8.41877075]
[1763451544692,1.474,3038.2,3037.5,0.86016377]
[1763451544892,1.474,3038.2,3037.6,0.86016377]
[1763451545061,1.474,3038.2,3037.7,0.86016377]
[1763451545262,1.474,3038.2,3037.5,1.14480162]
[1763451545263,1.474,3038.2,3037.5,0.86016377]
[1763451545463,1.474,3038.2,3037.3,0.86016377]
[1763451545657,1.474,3038.2,3037.4,0.4606]
[1763451545857,1.476,3038.1,3037.5,0.86016377]
[1763451546064,0.04,3038.6,3037.5,0.82466377]
[1763451546259,0.04,3038.6,3037.6,0.4793]
[1763451546584,1.476,3038.5,3037.6,0.4793]
[1763451546961,1.476,3038.5,3037.3,9.81012891]
[1763451547264,0.1282,3038.4,3037.1,1.62410162]
[1763451547456,0.1282,3038.4,3037.0,1.14480162]
[1763451547657,0.1282,3038.4,3036.9,1.14480162]
[1763451547857,0.1282,3038.4,3036.8,9.56357237]
[1763451548091,0.1282,3038.4,3036.7,0.4793]
[1763451548092,0.1282,3038.4,3036.7,1.14480162]
[1763451548257,0.1282,3038.4,3036.4,1.14480162]
[1763451548464,0.1282,3038.4,3036.2,2.38253703]
[1763451548465,0.1282,3038.4,3036.3,1.14480162]
[1763451548686,0.90699264,3038.2,3036.3,1.95168918]
[1763451548864,0.90699264,3038.2,3036.3,1.14480162]
[1763451549096,0.1282,3038.1,3036.3,1.14480162]
[1763451549294,0.1282,3038.1,3036.2,0.17252778]
[1763451549830,0.1282,3038.1,3036.1,0.1949]
[1763451549996,0.90699264,3037.9,3036.1,0.1949]
[1763451550192,0.35719926,3037.8,3036.1,0.6742]
[1763451550597,0.1282,3037.7,3036.1,0.6742]
[1763451551219,0.1282,3037.7,3036.1,0.1949]
[1763451551433,0.1282,3037.7,3036.4,8.41877075]
[1763451551599,2.665,3037.6,3036.4,8.41877075]
[1763451551791,0.27932,3037.5,3036.4,8.41877075]
[1763451552229,0.40752,3037.5,3036.4,8.41877075]
[1763451552429,0.1282,3037.4,3036.2,1.62410162]
[1763451552867,0.27932,3037.5,3036.3,1.62410162]
[1763451552994,1.476,3037.4,3036.4,8.41877075]
[1763451553198,1.770432,3037.4,3036.4,10.04287237]
[1763451553627,1.476,3037.3,3036.4,8.89807075]
[1763451553999,1.476,3037.3,3036.3,1.14480162]
[1763451554215,0.0882,3036.4,3035.9,1.14480162]
[1763451554442,0.287,3036.3,3035.9,1.14480162]
[1763451554858,0.4152,3036.3,3035.6,1.14480162]
[1763451555012,0.287,3036.3,3035.5,1.14480162]
[1763451555434,0.287,3036.3,3035.3,0.1949]
[1763451555435,0.4152,3036.3,3035.3,0.1949]
[1763451555821,0.1282,3036.2,3035.1,1.34100162]
[1763451556134,0.1282,3036.2,3035.9,0.001]
[1763451556510,0.0882,3036.4,3035.9,0.001]
[1763451556730,1.475,3036.3,3035.9,0.001]
[1763451557248,0.1282,3036.0,3035.9,0.001]
[1763451557428,0.90699264,3037.7,3035.9,0.001]
[1763451557429,0.0882,3036.8,3036.2,0.6756]
[1763451557627,0.0882,3036.8,3036.2,0.1962]
[1763451557628,1.475,3036.7,3036.2,0.1962]
[1763451558474,1.475,3036.7,3036.1,0.1962]
[1763451558757,1.475,3036.6,3036.1,0.1962]
[1763451559158,1.475,3036.5,3036.2,0.4745]
[1763451559863,0.90699264,3038.4,3036.2,0.4745]
[1763451559864,1.475,3036.4,3036.2,0.65605016]
[1763451560065,1.475,3036.4,3036.2,0.18155016]
[1763451560269,1.475,3036.4,3035.9,1.14580162]
[1763451560953,1.475,3036.4,3036.0,1.14480162]
[1763451561158,1.475,3036.4,3036.0,1.61930162]
[1763451561365,1.475,3036.4,3035.9,1.14580162]
[1763451561570,0.286,3036.3,3035.9,1.62030162]
[1763451561880,1.475,3036.3,3036.0,1.14480162]
[1763451562032,1.475,3036.3,3036.2,0.1919]
[1763451562430,1.475,3036.3,3036.0,1.14480162]
[1763451562767,1.475,3036.2,3036.0,1.14480162]
[1763451562936,1.475,3036.2,3036.1,0.1919]
[1763451563132,1.475,3036.2,3035.9,1.14580162]